Cogmind - Beta 9.4 --- EXPLORER MODE // 2020.01.23 @ 15:01:52 Player: negentropy Result: Destroyed by as-11071 with Assembled Maul Performance ------------- Evolutions (1) 500 Regions Visited (3) 600 Robots Destroyed (24) 120 Value Destroyed (559) 559 Prototype IDs (0) 0 Alien Tech Used (0) 0 Bonus (0) 0 TOTAL SCORE: 1779 Bonus ------- None Cogmind --------- Core Integrity 0/400 Matter 292/300 Energy 100/100 System Corruption 12% Temperature Cool (0) Movement Core (300) Ox5 Location -9/Mines Parts ------- > --- POWER (1) -------- (None) > --- PROPULSION (3) --- (None) > --- UTILITY (4) ------ Large Storage Unit > --- WEAPON (2) ------- (None) > --- INVENTORY (10) --- Light Ion Engine Aluminum Leg Sensor Array Sensor Array Signal Interpreter Light Armor Plating Peak State ------------ > --- POWER ------------ Ion Engine > --- PROPULSION ------- Aluminum Leg Aluminum Leg Aluminum Leg > --- UTILITY ---------- Large Storage Unit Transport Network Coupler Targeting Computer Utility Shielding > --- WEAPON ----------- Particle Gun Assault Rifle > --- INVENTORY -------- Light Ion Engine Aluminum Leg Aluminum Leg Sensor Array Sensor Array Signal Interpreter Light Armor Plating Assault Rifle [Rating: 11] Favorites ----------- Power Ion Engine Engine Ion Engine Propulsion Aluminum Leg Treads Light Treads Leg Aluminum Leg Utility Targeting Computer Storage Large Storage Unit Processor Targeting Computer Protection Utility Shielding Weapon Assault Rifle Energy Gun Particle Gun Ballistic Gun Assault Rifle Special Weapon Mining Laser Special Melee Weapon Datajack Build | -11 -10 -9 -9 ------- Run | Scr Mat Mat Min Slots Evolved 3 | . 1 2 . Power . | . . . . Propulsion 1 | . . 1 . Utility 2 | . 1 1 . Weapon . | . . . . Parts Attached 22 | 9 3 8 2 Power 1 | 1 . . . Engine 1 | 1 . . . Core . | . . . . Reactor . | . . . . Propulsion 7 | 4 . 3 . Treads 2 | 2 . . . Leg 5 | 2 . 3 . Wheel . | . . . . Hover . | . . . . Flight . | . . . . Utility 5 | 2 2 1 . Device . | . . . . Storage 2 | 1 1 . . Processor 2 | 1 . 1 . Hackware . | . . . . Protection 1 | . 1 . . Artifact . | . . . . Weapon 9 | 2 1 4 2 Energy Gun 2 | . 1 1 . Energy Cannon . | . . . . Ballistic Gun 3 | 2 . 1 . Ballistic Cannon . | . . . . Launcher . | . . . . Special Weapon 1 | . . . 1 Impact Weapon . | . . . . Slashing Weapon . | . . . . Piercing Weapon . | . . . . Special Melee Weapon 3 | . . 2 1 Unidentified Prototypes . | . . . . Parts Lost 10 | . . . 10 Power 1 | . . . 1 Propulsion 3 | . . . 3 Utility 3 | . . . 3 Weapon 3 | . . . 3 Highest Loss Streak 10 | . . . 10 Average Slot Usage (%) 97 | . 99 98 88 Engine 10 | . 12 10 8 Leg 26 | . 25 30 25 Storage 11 | . 12 10 10 Processor 15 | . 12 20 19 Protection 10 | . 11 10 9 Energy Gun 5 | . 7 6 . Ballistic Gun 13 | . 16 10 8 Special Weapon 1 | . . . 7 Naked Turns . | . . . . Heaviest Build 27 | 16 27 27 25 Greatest Support 40 | 40 20 30 30 Greatest Overweight (x) 5 | 2 1 . 5 Average Overweight (x) . | . . . . Largest Inventory Capacity 10 | 8 10 10 10 Average Capacity 9 | 7 9 10 10 Most Carried 10 | 8 10 9 7 Average Carried 7 | 5 7 7 6 Final Capacity 10 | 8 10 10 10 Final Carried 10 | 6 10 8 6 Class Distribution -------------------- 100% | Hacker-Mutant Dominant Class ---------------- Hacker-Mutant | -10/Materials Hacker-Mutant | -9/Materials Hacker-Mutant | -9/Mines Resources | -11 -10 -9 -9 ----------- Run | Scr Mat Mat Min Matter Collected 668 | 257 202 124 85 Remotely . | . . . . Salvage Created 853 | . 410 429 14 Parts 60 | . 29 31 . Haulers Intercepted 3 | . 1 2 . Recyclers Shooed . | . . . . Parts Field Recycled . | . . . . Retrieved Matter . | . . . . Parts Self-Destructed . | . . . . Prevented . | . . . . Kills | -11 -10 -9 -9 ------- Run | Scr Mat Mat Min Combat Hostiles Destroyed 15 | . 6 7 2 Guns 13 | . 6 7 . Cannons 2 | . . . 2 Classes Destroyed 7 | . 5 2 . Hauler 3 | . 1 2 . Recycler 2 | . 2 . . Operator 1 | . . 1 . Watcher 3 | . 3 . . Swarmer 4 | . 4 . . Grunt 10 | . 2 6 2 Sentry 1 | . . 1 . Best Kill Streak 5 | . 5 3 2 Combat Bots Only 4 | . 4 3 2 Max Kills in Single Turn 1 | . 1 1 1 Gunslinging . | . . . . Exploded . | . . . . Melee . | . . . . Uniques/NPCs Destroyed . | . . . . Combat | -11 -10 -9 -9 -------- Run | Scr Mat Mat Min Damage Taken 1383 | . 135 155 1093 Core 460 | . 53 41 366 Absorbed by Shields . | . . . . Core Remaining (%) 89 | 100 78 . . Volleys Fired 81 | 1 36 35 9 Largest 2 | 2 2 2 2 Hottest 120 | 40 85 85 120 Shots Fired 144 | 2 72 53 17 Gun 136 | 2 72 53 9 Cannon . | . . . . Launcher . | . . . . Special 8 | . . . 8 Kinetic 109 | 2 63 35 9 Thermal 35 | . 9 18 8 Explosive . | . . . . Electromagnetic . | . . . . Robot Hit Streak 87 | . 28 78 87 Robot Miss Streak 2 | . 2 . 2 Penetration Max . | . . . . Secondary Targets 5 | . 4 1 . Max Gunslinging Chain 1 | . 1 1 . Shots Hit Robots 130 | . 62 50 18 Core Hits 46 | . 18 21 7 Critical Hits . | . . . . Critical Kills . | . . . . Critical Parts Destroyed . | . . . . Melee Attacks 5 | . . . 5 Impact . | . . . . Slashing . | . . . . Piercing . | . . . . Sneak Attacks . | . . . . Combat Hostiles . | . . . . Follow-up Attacks . | . . . . Damage Inflicted 1573 | . 680 646 247 Guns 1427 | . 680 646 101 Cannons . | . . . . Explosions . | . . . . Melee . | . . . . Ramming 2 | . . . 2 Kinetic 1098 | . 577 420 101 Thermal 473 | . 103 226 144 Explosive . | . . . . Electromagnetic . | . . . . Impact . | . . . . Slashing . | . . . . Piercing . | . . . . Highest Corruption 12 | . . . 12 Average Corruption 6 | . . . 6 Corruption Purged . | . . . . Effects 6 | . . . 6 Matter Fused 4 | . . . 4 Heat Flow Errors 1 | . . . 1 Targeting Errors 1 | . . . 1 Overload Shots . | . . . . Overflow Damage 12 | . . . 12 Projectiles 12 | . . . 12 Explosions . | . . . . Melee . | . . . . Knockbacks . | . . . . Impact . | . . . . Kinetic . | . . . . Secondary . | . . . . Self-Inflicted Damage . | . . . . Shots . | . . . . Rammed 2 | . . . 2 Targets Rammed 2 | . . . 2 Kicked . | . . . . Crushed . | . . . . Highest Temperature 241 | . 96 112 241 Average Temperature 41 | . 30 37 56 Received Heat Transfer 228 | . 48 99 81 Siege Activations . | . . . . Robots Corrupted . | . . . . Combat Hostiles . | . . . . Parts Fried . | . . . . Impact Corruptions . | . . . . Robots Melted . | . . . . Combat Hostiles . | . . . . Parts Melted 2 | . . 2 . Heat Transferred 1077 | . 259 518 300 Parts Sabotaged . | . . . . Parts Stolen . | . . . . Parts Stripped . | . . . . Power Chain Reactions . | . . . . Missiles Intercepted . | . . . . Alert | -11 -10 -9 -9 ------- Run | Scr Mat Mat Min Peak Influence 181 | . 181 137 50 Average Influence 35 | . 43 47 7 Maximum Alert Level . | . . . . Low Security (%) 100 | 100 100 100 100 Level 1 . | . . . . Level 2 . | . . . . Level 3 . | . . . . Level 4 . | . . . . Level 5 . | . . . . High Security . | . . . . Max Security . | . . . . Squads Dispatched 2 | . . 2 . Investigation 1 | . . 1 . Extermination . | . . . . Reinforcement 1 | . . 1 . Assault . | . . . . Garrison . | . . . . Intercept . | . . . . Construction Impeded . | . . . . Haulers Reinforced . | . . . . Stealth | -11 -10 -9 -9 --------- Run | Scr Mat Mat Min Distress Signals 3 | . 1 1 1 Communications Jammed . | . . . . Distress Signals . | . . . . Times Spotted 32 | . 14 9 9 Peak Tracking Total 5 | . 5 2 4 Tactical Retreats 2 | . . . 2 Traps | -11 -10 -9 -9 ------- Run | Scr Mat Mat Min Traps Triggered 2 | . 2 . . Indirectly . | . . . . Trap Hack Attempts . | . . . . Triggered . | . . . . Disarmed . | . . . . Reprogrammed 15 | . 11 4 . Reused . | . . . . Traps Extracted . | . . . . Installed . | . . . . Triggered . | . . . . Machines | -11 -10 -9 -9 ---------- Run | Scr Mat Mat Min Machines Disabled . | . . . . Max in Single Turn . | . . . . Machines Sabotaged . | . . . . Garrisons Compromised . | . . . . Overloaded Fab Kills . | . . . . Fab Network Shutdowns . | . . . . Hacking | -11 -10 -9 -9 --------- Run | Scr Mat Mat Min Machines Accessed 11 | . 7 4 . Terminals 10 | . 7 3 . Fabricators . | . . . . Repair Stations . | . . . . Recycling Units 1 | . . 1 . Scanalyzers . | . . . . Garrison Access . | . . . . Total Hacks 54 | . 26 28 . Successful 34 | . 13 21 . Failed 20 | . 13 7 . Catastrophic 1 | . 1 . . Database Lockouts . | . . . . Manual 12 | . 9 3 . Terminals 47 | . 26 21 . Fabricators . | . . . . Repair Stations . | . . . . Recycling Units 7 | . . 7 . Scanalyzers . | . . . . Garrison Access . | . . . . Terminal Hacks 29 | . 13 16 . Robot Analysis 1 | . . 1 . Level Access Points 2 | . 2 . . Alert Level 3 | . 1 2 . Unreport Threat 2 | . . 2 . Locate Traps 1 | . 1 . . Reprogram Traps 4 | . 3 1 . Dispatch Records 2 | . 1 1 . Maintenance Status 1 | . . 1 . Security Status 2 | . 1 1 . Investigation Status 1 | . . 1 . Recall Investigation 2 | . . 2 . Recall Reinforcements 1 | . 1 . . Hauler Manifests 3 | . 1 2 . Zone Layout 4 | . 2 2 . Fabricator Hacks . | . . . . Repair Station Hacks . | . . . . Recycling Unit Hacks 5 | . . 5 . Recycle Component 2 | . . 2 . Process 2 | . . 2 . Retrieve Components 1 | . . 1 . Scanalyzer . | . . . . Garrison Access Hacks . | . . . . Unauthorized Hacks . | . . . . Terminals . | . . . . Fabricators . | . . . . Repair Stations . | . . . . Recycling Units . | . . . . Scanalyzers . | . . . . Garrison Access . | . . . . Data Cores Recovered . | . . . . Used . | . . . . Hacking Detections 11 | . 7 4 . Full Trace Events 1 | . . 1 . Feedback Events . | . . . . Feedback Blocked . | . . . . Robot Schematics Acquired . | . . . . Robots Built . | . . . . Matter . | . . . . Time . | . . . . Total Robot Build Rating . | . . . . Part Schematics Acquired . | . . . . Parts Built . | . . . . Matter . | . . . . Time . | . . . . Total Part Build Rating . | . . . . Parts Repaired . | . . . . Time . | . . . . Parts Recycled 2 | . . 2 . Recycled Matter 256 | . . 256 . Retrieved Matter . | . . . . Retrieved Components . | . . . . Parts Scanalyzed . | . . . . Part Schematics Acquired . | . . . . Parts Damaged . | . . . . Bothacking | -11 -10 -9 -9 ------------ Run | Scr Mat Mat Min Used RIF Installer . | . . . . Robots Hacked 1 | . . . 1 Non-combat . | . . . . Combat 1 | . . . 1 Robot Hacks Applied 1 | . . . 1 parse_system 1 | . . . 1 Relay Couplers Released . | . . . . Robots Rewired . | . . . . Allies Hacked . | . . . . Hacks Repelled . | . . . . Allies | -11 -10 -9 -9 -------- Run | Scr Mat Mat Min Total Allies . | . . . . Largest Group . | . . . . Highest-Rated Group . | . . . . Highest-Rated Ally . | . . . . Total Orders . | . . . . Ally Attacks . | . . . . Total Damage . | . . . . Kills . | . . . . Allies Corrupted . | . . . . Allies Melted . | . . . . Intel | -11 -10 -9 -9 ------- Run | Scr Mat Mat Min Robot Analysis Total 1 | . . 1 . Derelict Logs Recovered . | . . . . Drone Launches . | . . . . Drone Recoveries . | . . . . Exploration | -11 -10 -9 -9 ------------- Run | Scr Mat Mat Min Turns Passed 2488 | 117 1376 504 491 Spaces Moved 1561 | 71 843 333 314 Core 38 | 36 . . 2 Treads 11 | 11 . . . Legs 1512 | 24 843 333 312 Wheels . | . . . . Hover . | . . . . Flight . | . . . . Fastest Speed 50 | 50 120 120 120 Average Speed 136 | 131 148 120 123 Slowest Speed 300 | 160 150 120 300 Overloaded Moves . | . . . . Propulsion Burnouts . | . . . . Robots Hopped . | . . . . Cave-ins Triggered . | . . . . Exploration Rate (%) 47 | 4 98 32 57 Regions Visited 3 Branch Regions 1 Pre-discovered Areas . | . . . . Known Exits Taken 3 | 1 1 1 . Unknown Exits Taken . | . . . . Scrap Searched . | . . . . Spaces Dug . | . . . . Terrain Destroyed 1 | . . . 1 Melee . | . . . . Projectile 1 | . . . 1 AOE . | . . . . Actions | -11 -10 -9 -9 --------- Run | Scr Mat Mat Min Total 1755 | 90 905 383 377 Wait 58 | . 11 2 45 Move 1558 | 70 842 332 314 Hop . | . . . . Pick Up 22 | 10 9 3 . Fast Attach 3 | 3 . . . Attach 9 | 4 1 2 2 Detach 1 | . . 1 . Swap 10 | 2 2 6 . Drop 6 | . 4 2 . Fire 81 | 1 36 35 9 Melee 5 | . . . 5 Ram . | . . . . Kick 2 | . . . 2 Crush . | . . . . Escape Stasis . | . . . . Rewire . | . . . . Trap . | . . . . Miscellaneous . | . . . . Route ------- -11/Scrapyard -10/Materials (discovered 5 exits: *Mat x3 / *Min x2) -9/Materials (discovered 2 exits: *Min x2) -9/Mines History --------- Turn | Location | Event 25 | -11/Scrapyard | Identified exit to Materials 25 | -11/Scrapyard | Discovered exit to Materials (range 16) 118 | -11/Scrapyard | Entered Materials 118 | -10/Materials | Evolved 1 slot: Utility x1 224 | -10/Materials | Identified exit to Mines 224 | -10/Materials | Discovered exit to Mines (range 11) 303 | -10/Materials | Build established: Hacker-Mutant 723 | -10/Materials | Identified exit to Materials 723 | -10/Materials | Discovered exit to Materials (range 16) 1392 | -10/Materials | Discovered exit to Mines (range 14) 1494 | -10/Materials | Entered another Materials area 1494 | -9/Materials | Evolved 2 slots: Propulsion x1, Utility x1 1609 | -9/Materials | Identified exit to Mines 1609 | -9/Materials | Discovered exit to Mines (range 15) 1899 | -9/Materials | Discovered exit to Mines (range 11) 1998 | -9/Materials | Entered Mines 2337 | -9/Mines | Assembled infested the area 2456 | -9/Mines | System corruption reached 10% 2465 | -9/Mines | Core integrity fell below 50% 2481 | -9/Mines | Core integrity fell below 20% 2489 | -9/Mines | Destroyed by as-11071 with Assembled Maul Last Messages --------------- 02448_ Jacked as-48252... 02448_ Command string: assimilate 02448_ No effect. 02449_ Utility Shielding destroyed. 02449_ System corrupted by crushing effect (+2). 02450_ Jacked as-48252... 02450_ Command string: assimilate 02450_ No effect. 02452_ Jacked as-48252... 02452_ Command string: assimilate 02452_ No effect. 02454_ Jacked as-48252... 02454_ Command string: assimilate 02454_ No effect. 02455_ Datajack destroyed. 02455_ System corrupted by crushing effect (+1). 02464_ System corrupted: Heat flow error (+269). 02482_ System corrupted: Matter fused (-8). 02483_ Transport Network Coupler destroyed. 02483_ System corrupted by crushing effect (+2). Map ----- +----------------------------------------------------+ | | | | | | | | | | | | | | | | | | | | | | | | | | | | | | | | | | | ??????????????????????????????????????? | | ??????????????????????####????????????? | | ???????????????????#### ##???????????? | | ??????????????????## ##?####?????? | | ??????????????????# ### ##????? | | ??????????????????# ###??? | | ?????????########## ##?? | | ?????????# a ##? | | ?????????# aa@ a ## | | ?????????# ########## | | ?????????# #???????## | | ?????????# #??????## ### | | ?????????# #?####?# ## % ##?? | | ?????????# ## ### ### ##??? | | ????????##% ### #### ####???? | | ????????# % ## ##?# ##??????? | | ????????# ## #??# #???????? | | ????????## #### #??## #???????? | | ?????????####??## #???## #???????? | | ????????????????## #???## #???????? | | ?????????????????## #???# #???????? | | ??????????????????## #???# #???????? | | ???????????????????# #??## ##???????? | | ???????????????????# #??# #?######## | | ???????????????????# #??# ### | | ???????????????????# ##### ## ! | | ???????????????????# #?# ## !! | | ???????????????????### #### ### ! | | ?????????????????????# ## #?? !! | | ?????????????????????#### ## #?? | | ????????????????????##### #??? ? | | ???????????????????## #### #??? ?? | | ???????########???## ### ##### #??? | +----------------------------------------------------+ Best States ------------- Heat Dissipation 28 Energy Generation 10 Energy Capacity 250 Matter Stores 300 Matter Capacity 300 Sight Range 16 Terrain Scan Density 10 Resistance: KI 35 Resistance: TH 35 Resistance: EX 35 Resistance: EM 35 Resistance: I 35 Resistance: S 35 Resistance: P 35 Utility Shielding 33 Evasion (%) 50 Targeting Accuracy 5 Recoil Reduction 2 Offensive Hacking 20 Item Schematics ----------------- None Robot Schematics ------------------ None Fabricated ------------ Nothing Alien Tech Used ----------------- None Achievements -------------- None Challenges ------------ None Game ------ Seed ElectronOverloadPrototype Manual? 0 Play Time 00:23:19 Cumulative 12.1 hours Start 2020.01.23 @ 14:36:16 End 2020.01.23 @ 15:01:52 Sessions 1 Manual Loads 0 Difficulty Explorer Special Mode None Game No. 40 Rogue 28 Adventurer 0 Explorer 12 Win Type - Total 0 Types 0/0/0/0/0/0/0 Lore% 20 Gallery% 17 Achievement% 17 Wizard Run 0 Options --------- ASCII 0 Keyboard 0 Movement Arrows Keybinds 0 Fullscreen 2 Font 12/Terminus Map View 83x54 Tactical HUD 1 Map Filters NONE Filters NONE Steam 1 RUN: 247f5e66-00dd-4904-a7e6-b62e6a753ea3